fUSD/lending_fUSD_20240214
["ID","MTS","AMOUNT","RATE_DAILY","PERIOD"]
[314013135,1707923526903,-1109.74,0.00039452,7]
[314013136,1707923526916,-254.34347282,0.00039452,7]
[314013137,1707923526926,-500.0,0.00039452,7]
[314013138,1707923526935,-632.23,0.00039452,7]
[314013139,1707923526946,-500.0,0.00039452,7]
[314013140,1707923526955,-886.7,0.00039452,7]
[314013141,1707923526964,-500.0,0.00039452,7]
[314013142,1707923526977,-500.0,0.00039452,7]
[314013143,1707923526986,-582.6,0.00039452,7]
[314013144,1707923526995,-500.0,0.00039452,2]
[314013145,1707923527005,-500.0,0.00039452,7]
[314013146,1707923527016,-631.42,0.00039452,7]
[314013147,1707923527026,-500.0,0.00039452,7]
[314013148,1707923527035,-500.0,0.00039452,7]
[314013149,1707923527044,-1281.5,0.00039452,7]
[314013150,1707923527054,-545.76457211,0.00039452,7]
[314013151,1707923527064,-500.0,0.00039452,7]
[314013152,1707923527072,-500.0,0.00039452,7]
[314013153,1707923527082,-500.0,0.00039452,7]
[314013154,1707923527092,-500.0,0.00039452,7]
[314013155,1707923527102,-1512.4,0.00039452,7]
[314013156,1707923527112,-669.64,0.00039452,7]
[314013157,1707923527121,-500.0,0.00039452,7]
[314013158,1707923527131,-2645.87,0.00039452,7]
[314013159,1707923527140,-500.0,0.00039452,7]
[314013160,1707923527150,-649.97,0.00039452,7]
[314013161,1707923527160,-9592.87,0.00039452,7]
[314013162,1707923527174,-6589.39,0.00039452,7]
[314013163,1707923527184,-537.36,0.00039452,7]
[314013164,1707923527193,-500.0,0.00039452,7]
[314013165,1707923527202,-1074.08,0.00039452,7]
[314013166,1707923527213,-500.0,0.00039452,7]
[314013167,1707923527223,-712.86,0.00039452,7]
[314013168,1707923527232,-10349.22,0.00039452,7]
[314013169,1707923527241,-500.0,0.00039452,7]
[314013170,1707923527251,-2138.7,0.00039452,7]
[314013171,1707923527261,-500.0,0.00039452,7]
[314013172,1707923527271,-2522.18,0.00039452,7]
[314013173,1707923527281,-1253.86,0.00039452,7]
[314013174,1707923527291,-500.0,0.00039452,7]
[314013175,1707923527300,-617.22,0.00039452,7]
[314013176,1707923527310,-775.14,0.00039452,7]
[314013177,1707923527320,-5438.42,0.00039452,7]
[314013178,1707923527329,-5792.28,0.00039452,7]
[314013179,1707923527338,-1042.95,0.00039452,7]
[314013180,1707923527347,-500.0,0.00039452,7]
[314013181,1707923527357,-1101.1,0.00039452,7]
[314013182,1707923527366,-1305.25,0.00039452,7]
[314013183,1707923527376,-1375.63,0.00039452,7]
[314013184,1707923527386,-500.0,0.00039452,7]
[314013185,1707923527395,-1710.63,0.00039452,7]
[314013186,1707923527404,-1942.7,0.00039452,7]
[314013187,1707923527419,-3610.33,0.00039452,7]
[314013188,1707923527428,-656.71,0.00039452,7]
[314013189,1707923527438,-500.0,0.00039452,7]
[314013190,1707923527447,-508.16,0.00039452,7]
[314013191,1707923527456,-500.0,0.00039452,7]
[314013192,1707923527466,-13119.1,0.00039452,7]
[314013193,1707923527475,-500.0,0.00039452,7]
[314013194,1707923527484,-2795.61,0.00039452,7]
[314013195,1707923527494,-4841.93,0.00039452,7]
[314013196,1707923527503,-789.06,0.00039452,7]
[314013197,1707923527513,-1486.36,0.00039452,7]
[314013198,1707923527522,-3238.15,0.00039452,7]
[314013199,1707923527531,-1122.77,0.00039452,7]
[314013200,1707923527541,-435.19477726,0.00039452,7]
[314013201,1707923527550,-805.46,0.00039452,7]
[314013202,1707923527559,-5897.47,0.00039452,7]
[314013203,1707923527569,-664.49,0.00039452,7]
[314013204,1707923527578,-1313.77,0.00039452,7]
[314013205,1707923527587,-500.0,0.00039452,7]
[314013206,1707923527597,-574.19,0.00039452,7]
[314013207,1707923527606,-500.0,0.00039452,7]
[314013208,1707923527615,-550.31047753,0.00039452,7]
[314013209,1707923527625,-11522.74,0.00039452,7]
[314013210,1707923527634,-500.0,0.00039452,7]
[314013211,1707923527643,-1290.94,0.00039452,7]
[314013212,1707923527652,-520.12,0.00039452,7]
[314013213,1707923527667,-1511.05,0.00039452,7]
[314013214,1707923527677,-398.07388597,0.00039452,7]
[314013215,1707923527686,-879.95,0.00039452,7]
[314013216,1707923527695,-6267.83,0.00039452,7]
[314013217,1707923527704,-2830.38,0.00039452,7]
[314013218,1707923527714,-763.78,0.00039452,7]
[314013219,1707923527724,-1371.91,0.00039452,7]
[314013220,1707923527733,-626.07,0.00039452,7]
[314013221,1707923527743,-500.0,0.00039452,7]
[314013222,1707923527752,-4425.6,0.00039452,7]
[314013223,1707923527761,-500.0,0.00039452,7]
[314013224,1707923527770,-500.0,0.00039452,7]
[314013225,1707923527779,-986.33,0.00039452,7]
[314013226,1707923527789,-45639.2,0.00039452,7]
[314013227,1707923527798,-5389.09,0.00039452,7]
[314013228,1707923527808,-1240.03,0.00039452,7]
[314013229,1707923527817,-500.0,0.00039452,7]
[314013230,1707923527826,-558.68,0.00039452,7]
[314013231,1707923527836,-4636.49,0.00039452,7]
[314013232,1707923527845,-500.0,0.00039452,7]
[314013233,1707923527855,-525.56,0.00039452,7]
[314013234,1707923527865,-2461.93,0.00039452,7]
[314013235,1707923527875,-1060.11,0.00039452,7]
[314013236,1707923527884,-682.43,0.00039452,7]
[314013237,1707923527894,-1031.1,0.00039452,7]
[314013238,1707923527903,-3757.3,0.00039452,7]
[314013239,1707923527918,-741.06,0.00039452,7]
[314013240,1707923527928,-777.41,0.00039452,7]
[314013241,1707923527938,-838.79,0.00039452,7]
[314013242,1707923527947,-1479.6,0.00039452,7]
[314013243,1707923527957,-866.09,0.00039452,7]
[314013244,1707923527967,-8419.92,0.00039452,7]
[314013245,1707923527977,-3315.92,0.00039452,7]
[314013246,1707923527987,-1669.6,0.00039452,7]
[314013247,1707923527997,-500.0,0.00039452,7]
[314013248,1707923528007,-1425.19,0.00039452,7]
[314013249,1707923528018,-500.0,0.00039452,7]
[314013250,1707923528029,-941.92,0.00039452,7]
[314013251,1707923528039,-1068.3,0.00039452,7]
[314013252,1707923528050,-978.39,0.00039452,7]
[314013253,1707923528060,-1743.01,0.00039452,7]
[314013254,1707923528070,-500.0,0.00039452,7]
[314013255,1707923528080,-527.53,0.00039452,7]
[314013256,1707923528092,-5014.41,0.00039452,7]
[314013257,1707923528102,-2618.16,0.00039452,7]
[314013258,1707923528112,-16404.96,0.00039452,7]
[314013259,1707923528121,-1253.74,0.00039452,7]
[314013260,1707923528131,-1428.29,0.00039452,7]
[314013261,1707923528141,-12919.21,0.00039452,7]
[314013262,1707923528151,-500.0,0.00039452,7]
[314013263,1707923528165,-725.51,0.00039452,7]
[314013264,1707923528175,-670.32,0.00039452,7]
[314013265,1707923528185,-500.0,0.00039452,7]
[314013266,1707923528195,-608.21,0.00039452,7]
[314013267,1707923528205,-564.17,0.00039452,7]
[314013268,1707923528215,-3982.22,0.00039452,7]
[314013269,1707923528224,-500.0,0.00039452,7]
[314013270,1707923528234,-15886.12,0.00039452,7]
[314013271,1707923528244,-1912.2,0.00039452,7]
[314013272,1707923528254,-2293.57,0.00039452,7]
[314013273,1707923528264,-1078.52,0.00039452,7]
[314013274,1707923528274,-1675.86,0.00039452,7]
[314013275,1707923528284,-4682.24,0.00039452,7]
[314013276,1707923528294,-998.25,0.00039452,7]
[314013277,1707923528304,-1548.99,0.00039452,7]
[314013278,1707923528314,-500.0,0.00039452,7]
[314013279,1707923528324,-2172.47,0.00039452,7]
[314013280,1707923528334,-1678.3,0.00039452,7]
[314013281,1707923528344,-500.0,0.00039452,7]
[314013282,1707923528354,-4636.94,0.00039452,7]
[314013283,1707923528363,-500.0,0.00039452,7]
[314013284,1707923528374,-905.58,0.00039452,7]
[314013285,1707923528384,-24853.72,0.00039452,7]
[314013286,1707923528394,-3347.59,0.00039452,7]
[314013287,1707923528403,-2682.03,0.00039452,7]
[314013288,1707923528414,-500.0,0.00039452,7]
[314013289,1707923528424,-741.23,0.00039452,7]
[314013290,1707923528433,-4661.42,0.00039452,7]
[314013291,1707923528442,-504.17,0.00039452,7]
[314013292,1707923528451,-644.02,0.00039452,7]
[314013293,1707923528461,-1447.91,0.00039452,7]
[314013294,1707923528471,-870.17,0.00039452,7]
[314013295,1707923528480,-6063.47,0.00039452,7]
[314013296,1707923528489,-575.73,0.00039452,2]
[314013297,1707923528498,-513.51,0.00039452,7]
[314013298,1707923528508,-13772.64,0.00039452,7]
[314013299,1707923528518,-734.67,0.00039452,7]
[314013300,1707923528527,-861.53,0.00039452,7]
[314013301,1707923528537,-4963.65,0.00039452,7]
[314013302,1707923528547,-4015.51,0.00039452,7]
[314013303,1707923528557,-1647.66,0.00039452,7]
[314013304,1707923528566,-500.0,0.00039452,7]
[314013305,1707923528576,-834.17,0.00039452,7]
[314013306,1707923528586,-1651.62,0.00039452,7]
[314013307,1707923528595,-1367.71,0.00039452,7]
[314013308,1707923528605,-705.01,0.00039452,7]
[314013309,1707923528614,-738.43,0.00039452,7]
[314013310,1707923528623,-500.0,0.00039452,7]
[314013311,1707923528633,-1605.94,0.00039452,7]
[314013312,1707923528642,-1397.98,0.00039452,7]
[314013313,1707923528652,-1232.76,0.00039452,7]
[314013314,1707923528664,-2624.93,0.00039452,7]
[314013315,1707923528675,-6303.05,0.00039452,7]
[314013316,1707923528685,-3882.2,0.00039452,7]
[314013317,1707923528695,-1424.26,0.00039452,7]
[314013318,1707923528704,-6722.84,0.00039452,7]
[314013319,1707923528714,-6796.38,0.00039452,7]
[314013320,1707923528724,-500.0,0.00039452,7]
[314013321,1707923528734,-9115.46,0.00039452,7]
[314013322,1707923528743,-1430.04,0.00039452,7]
[314013323,1707923528753,-876.71,0.00039452,7]
[314013324,1707923528764,-1566.04,0.00039452,7]
[314013325,1707923528773,-1159.69,0.00039452,7]
[314013326,1707923528783,-5625.73,0.00039452,7]
[314013327,1707923528793,-742.15,0.00039452,7]
[314013328,1707923528803,-500.0,0.00039452,7]
[314013329,1707923528813,-1074.84,0.00039452,7]
[314013330,1707923528823,-21955.42,0.00039452,7]
[314013331,1707923528833,-500.0,0.00039452,7]
[314013332,1707923528842,-1224.55,0.00039452,7]
[314013333,1707923528852,-10536.73,0.00039452,7]
[314013334,1707923528862,-3349.17,0.00039452,7]
[314013335,1707923528872,-4103.23,0.00039452,7]
[314013336,1707923528882,-1141.82,0.00039452,7]
[314013337,1707923528891,-15646.43,0.00039452,7]
[314013338,1707923528901,-500.0,0.00039452,7]
[314013339,1707923528911,-580.0,0.00039452,7]
[314013340,1707923528924,-888.9,0.00039452,7]
[314013341,1707923528934,-1131.16,0.00039452,7]
[314013342,1707923528943,-849.7,0.00039452,7]
[314013343,1707923528953,-500.0,0.00039452,7]
[314013344,1707923528963,-500.0,0.00039452,7]
[314013345,1707923528976,-970.39,0.00039452,7]
[314013346,1707923528986,-2458.64,0.00039452,7]
[314013347,1707923528996,-1000.0,0.00039452,30]
[314013348,1707923529005,-1032.81,0.00039452,7]
[314013349,1707923529017,-940.22,0.00039452,7]
[314013350,1707923529028,-845.63,0.00039452,7]
[314013351,1707923529038,-655.93,0.00039452,7]
[314013352,1707923529049,-861.05,0.00039452,7]
[314013353,1707923529059,-2020.71,0.00039452,7]
[314013354,1707923529069,-1868.07,0.00039452,7]
[314013355,1707923529079,-4353.77,0.00039452,7]
[314013356,1707923529091,-500.0,0.00039452,7]
[314013357,1707923529101,-2136.24,0.00039452,7]
[314013358,1707923529111,-500.0,0.00039452,7]
[314013359,1707923529121,-3468.32,0.00039452,7]
[314013360,1707923529131,-1175.69,0.00039452,7]
[314013361,1707923529141,-4307.44,0.00039452,7]
[314013362,1707923529151,-2131.96,0.00039452,7]
[314013363,1707923529163,-4133.28,0.00039452,7]
[314013364,1707923529174,-3754.14,0.00039452,7]
[314013365,1707923529185,-500.0,0.00039452,7]
[314013366,1707923529195,-1200.28,0.00039452,7]
[314013367,1707923529205,-551.94,0.00039452,7]
[314013368,1707923529215,-1293.93,0.00039452,7]
[314013369,1707923529225,-1428.62,0.00039452,7]
[314013370,1707923529235,-2643.73,0.00039452,7]
[314013371,1707923529246,-4255.94,0.00039452,7]
[314013372,1707923529256,-500.0,0.00039452,7]
[314013373,1707923529266,-1073.43,0.00039452,7]
[314013374,1707923529276,-1154.7,0.00039452,7]
[314013375,1707923529286,-500.0,0.00039452,7]
[314013376,1707923529297,-749.27,0.00039452,7]
[314013377,1707923529307,-1681.08,0.00039452,7]
[314013378,1707923529317,-696.07,0.00039452,7]
[314013379,1707923529326,-1960.66,0.00039452,7]
[314013380,1707923529336,-1992.67,0.00039452,7]
[314013381,1707923529346,-4598.11,0.00039452,7]
[314013382,1707923529357,-2148.61,0.00039452,7]
[314013383,1707923529367,-776.5,0.00039452,7]
[314013384,1707923529377,-876.47,0.00039452,7]
[314013385,1707923529388,-907.63,0.00039452,7]
[314013386,1707923529399,-759.83,0.00039452,7]
[314013387,1707923529410,-1863.83,0.00039452,7]
[314013388,1707923529426,-22229.37,0.00039452,7]
[314013389,1707923529436,-2233.48,0.00039452,7]
[314013390,1707923529447,-500.0,0.00039452,7]
[314013391,1707923529459,-1407.78,0.00039452,7]
[314013392,1707923529469,-2807.7,0.00039452,7]
[314013393,1707923529480,-500.0,0.00039452,7]
[314013394,1707923529490,-4409.87,0.00039452,7]
[314013395,1707923529501,-749.48,0.00039452,7]
[314013396,1707923529512,-500.0,0.00039452,7]
[314013397,1707923529522,-770.43,0.00039452,7]
[314013398,1707923529532,-940.66,0.00039452,7]
[314013399,1707923529542,-1582.96,0.00039452,7]
[314013400,1707923529552,-778.24,0.00039452,7]
[314013401,1707923529562,-819.98,0.00039452,7]
[314013402,1707923529572,-501.61,0.00039452,7]
[314013403,1707923529582,-1689.02,0.00039452,7]
[314013404,1707923529592,-2641.0,0.00039461,20]
[314013405,1707923529602,-544.0,0.00039461,20]
[314013406,1707923529612,-500.0,0.00039474,7]
[314013407,1707923529622,-5007.72,0.00039485,2]
[314013408,1707923529632,-15000.0,0.0003949,6]
[314013409,1707923529642,-5000.0,0.000395,4]
[314013410,1707923529651,-890.0,0.000395,10]
[314013411,1707923529667,-1600.0,0.000395,12]
[314013412,1707923529678,-669.1359898,0.000395,2]
[314013413,1707923529687,-2758.43,0.000395,7]
[314013414,1707923529698,-150.0,0.00039534,2]
[314013415,1707923529707,-150.0,0.00039534,2]
[314013416,1707923529718,-337.92002427,0.000396,2]
[314013417,1707923529728,-200.0,0.000396,14]
[314013418,1707923529737,-6000.01,0.0003963,2]
[314013419,1707923529747,-157.0,0.00039644,7]
[314013420,1707923529756,-289.0,0.00039644,7]
[314013421,1707923529767,-151.021419,0.00039648,19]
[314013422,1707923529777,-83789.94,0.0003965,15]
[314013423,1707923529787,-49000.0,0.0003967,4]
[314013424,1707923529797,-7609.889101,0.0003968,2]
[314013425,1707923529808,-1604.235509,0.0003968,2]
[314013426,1707923529817,-243.056569,0.0003968,2]
[314013427,1707923529827,-289.497665,0.0003968,2]
[314013428,1707923529838,-1604.235509,0.0003968,2]
[314013429,1707923529847,-358.51405087,0.00039684,4]
[314013430,1707923529857,-71800.0,0.0003969,10]
[314013431,1707923529867,-28574.85781921,0.0003969,2]
[314013432,1707923529877,-3312.13,0.000397,7]
[314013433,1707923529886,-150.0,0.00039722,2]
[314013434,1707923529896,-150.0,0.00039722,2]
[314013435,1707923529906,-500.0,0.00039726,7]
[314013436,1707923529919,-500.0,0.00039726,7]
[314013437,1707923529929,-500.0,0.00039726,7]
[314013438,1707923529939,-500.0,0.00039726,7]
[314013439,1707923529949,-500.0,0.00039726,7]
[314013440,1707923529958,-500.0,0.00039726,7]
[314013441,1707923529968,-636.47,0.00039726,7]
[314013442,1707923529977,-500.0,0.00039726,7]
[314013443,1707923529987,-500.0,0.00039726,7]
[314013444,1707923529996,-500.0,0.00039726,7]
[314013445,1707923530006,-500.0,0.00039726,7]
[314013446,1707923530018,-500.0,0.00039726,7]
[314013447,1707923530027,-500.0,0.00039726,7]
[314013448,1707923530203,-500.0,0.00039726,7]
[314013449,1707923530232,-536.83,0.00039726,7]
[314013450,1707923530241,-500.0,0.00039726,7]
[314013451,1707923530250,-511.55,0.00039726,7]
[314013452,1707923530260,-564.0,0.00039726,7]
[314013453,1707923530270,-500.0,0.00039726,7]
[314013454,1707923530279,-500.0,0.00039726,7]
[314013455,1707923530289,-525.97889854,0.00039726,7]
[314013456,1707923530298,-1240.83,0.00039726,7]
[314013457,1707923530307,-500.0,0.00039726,7]
[314013458,1707923530316,-1171.11,0.00039726,7]
[314013459,1707923530325,-564.08,0.00039726,7]
[314013460,1707923530335,-1281.17,0.00039726,7]
[314013461,1707923530344,-1147.23,0.00039726,7]
[314013462,1707923530354,-500.0,0.00039726,7]
[314013463,1707923530363,-568.35,0.00039726,7]
[314013464,1707923530372,-1433.14,0.00039726,7]
[314013465,1707923530381,-500.0,0.00039726,7]
[314013466,1707923530391,-500.0,0.00039726,7]
[314013467,1707923530400,-530.02,0.00039726,7]
[314013468,1707923530410,-528.29,0.00039726,7]
[314013469,1707923530427,-1489.83,0.00039726,7]
[314013470,1707923530436,-1024.97,0.00039726,7]
[314013471,1707923530446,-569.56,0.00039726,7]
[314013472,1707923530455,-500.0,0.00039726,7]
[314013473,1707923530465,-1152.13,0.00039726,7]
[314013474,1707923530474,-785.09,0.00039726,7]
[314013475,1707923530483,-1376.22,0.00039726,2]
[314013476,1707923530492,-500.0,0.00039726,7]
[314013477,1707923530502,-770.95,0.00039726,7]
[314013478,1707923530511,-527.56454142,0.00039726,7]
[314013479,1707923530520,-1599.92,0.00039726,7]
[314013480,1707923530530,-1153.23,0.00039726,7]
[314013481,1707923530539,-500.0,0.00039726,7]
[314013482,1707923530548,-1045.09,0.00039726,7]
[314013483,1707923530557,-774.56,0.00039726,7]
[314013484,1707923530567,-1031.35,0.00039726,7]
[314013485,1707923530577,-548.76,0.00039726,7]
[314013486,1707923530586,-500.0,0.00039726,7]
[314013487,1707923530596,-661.87,0.00039726,7]
[314013488,1707923530605,-500.0,0.00039726,7]
[314013489,1707923530614,-500.0,0.00039726,7]
[314013490,1707923530623,-584.37,0.00039726,7]
[314013491,1707923530633,-520.1,0.00039726,7]
[314013492,1707923530642,-1604.0,0.00039726,7]
[314013493,1707923530651,-943.16,0.00039726,7]
[314013494,1707923530659,-500.0,0.00039726,7]
[314013495,1707923530674,-644.22,0.00039726,7]
[314013496,1707923530683,-1264.92,0.00039726,7]
[314013497,1707923530693,-1136.26,0.00039726,7]
[314013498,1707923530702,-704.7,0.00039726,7]
[314013499,1707923530712,-812.61,0.00039726,7]
[314013500,1707923530721,-570.14,0.00039726,7]
[314013501,1707923530731,-500.0,0.00039726,7]
[314013502,1707923530740,-553.03,0.00039726,7]
[314013503,1707923530749,-519.06,0.00039726,7]
[314013504,1707923530758,-1130.05,0.00039726,7]
[314013505,1707923530767,-733.41,0.00039726,7]
[314013506,1707923530777,-674.48,0.00039726,7]
[314013507,1707923530786,-599.48,0.00039726,7]
[314013508,1707923530794,-699.45,0.00039726,7]
[314013509,1707923530804,-647.83,0.00039726,7]
[314013510,1707923530813,-808.31,0.00039726,7]
[314013511,1707923530822,-1377.65,0.00039726,7]
[314013512,1707923530832,-734.76,0.00039726,7]
[314013513,1707923530841,-1574.35,0.00039726,7]
[314013514,1707923530851,-1145.4,0.00039726,7]
[314013515,1707923530861,-1361.9,0.00039726,7]
[314013516,1707923530870,-500.0,0.00039726,7]
[314013517,1707923530880,-500.0,0.00039726,7]
[314013518,1707923530890,-500.0,0.00039726,7]
[314013519,1707923530900,-1000.98,0.00039726,7]
[314013520,1707923530910,-940.65,0.00039726,7]
[314013521,1707923530923,-819.39,0.00039726,7]
[314013522,1707923530933,-664.33,0.00039726,7]
[314013523,1707923530942,-500.0,0.00039726,7]
[314013524,1707923530951,-574.43,0.00039726,7]
[314013525,1707923530960,-582.92,0.00039726,7]
[314013526,1707923530971,-500.0,0.00039726,7]
[314013527,1707923530981,-709.41,0.00039726,7]
[314013528,1707923530990,-523.78,0.00039726,7]
[314013529,1707923530999,-584.12,0.00039726,7]
[314013530,1707923531011,-629.64,0.00039726,7]
[314013531,1707923531021,-549.4,0.00039726,7]
[314013532,1707923531030,-1007.67,0.00039726,7]
[314013533,1707923531039,-2090.09,0.00039726,7]
[314013534,1707923531050,-964.24,0.00039726,7]
[314013535,1707923531059,-500.0,0.00039726,7]
[314013536,1707923531068,-500.0,0.00039726,7]
[314013537,1707923531077,-633.52,0.00039726,7]
[314013538,1707923531089,-500.0,0.00039726,7]
[314013539,1707923531099,-500.0,0.00039726,7]
[314013540,1707923531109,-1464.25,0.00039726,7]
[314013541,1707923531119,-1470.37,0.00039726,7]
[314013542,1707923531128,-500.0,0.00039726,7]
[314013543,1707923531137,-608.25,0.00039726,7]
[314013544,1707923531147,-760.6,0.00039726,7]
[314013545,1707923531156,-500.0,0.00039726,7]
[314013546,1707923531168,-547.73,0.00039726,7]
[314013547,1707923531178,-1725.04,0.00039726,7]
[314013548,1707923531187,-554.39,0.00039726,7]
[314013549,1707923531196,-500.0,0.00039726,7]
[314013550,1707923531206,-1351.58,0.00039726,7]
[314013551,1707923531215,-638.35,0.00039726,7]
[314013552,1707923531225,-500.0,0.00039726,7]
[314013553,1707923531234,-855.82,0.00039726,7]
[314013554,1707923531243,-619.45,0.00039726,7]
[314013555,1707923531253,-974.92,0.00039726,7]
[314013556,1707923531262,-500.0,0.00039726,7]
[314013557,1707923531271,-500.0,0.00039726,7]
[314013558,1707923531280,-1157.75,0.00039726,7]
[314013559,1707923531290,-896.42,0.00039726,2]
[314013560,1707923531300,-500.0,0.00039726,7]
[314013561,1707923531310,-500.0,0.00039726,7]
[314013562,1707923531319,-500.0,0.00039726,7]
[314013563,1707923531328,-500.0,0.00039726,7]
[314013564,1707923531338,-544.41,0.00039726,7]
[314013565,1707923531348,-586.61,0.00039726,7]
[314013566,1707923531357,-500.0,0.00039726,20]
[314013567,1707923531366,-863.99,0.00039726,7]
[314013568,1707923531375,-500.0,0.00039726,7]
[314013569,1707923531384,-969.91,0.00039726,7]
[314013570,1707923531394,-500.0,0.00039726,7]
[314013571,1707923531403,-500.0,0.00039726,7]
[314013572,1707923531415,-597.96,0.00039726,2]
[314013573,1707923531425,-1237.52,0.00039726,7]
[314013574,1707923531435,-500.0,0.00039726,7]
[314013575,1707923531444,-500.0,0.00039726,7]
[314013576,1707923531453,-686.48,0.00039726,7]
[314013577,1707923531463,-500.0,0.00039726,7]
[314013578,1707923531472,-500.0,0.00039726,7]
[314013579,1707923531481,-500.0,0.00039726,7]
[314013580,1707923531490,-633.51,0.00039726,7]
[314013581,1707923531499,-500.0,0.00039726,7]
[314013582,1707923531509,-1310.86,0.00039726,7]
[314013583,1707923531518,-500.0,0.00039726,7]
[314013584,1707923531528,-646.21,0.00039726,7]
[314013585,1707923531537,-209.61621,0.00039726,7]
[314013586,1707923531546,-643.81,0.00039726,7]
[314013587,1707923531556,-500.0,0.00039726,7]
[314013588,1707923531566,-632.83,0.00039726,7]
[314013589,1707923531575,-1166.74,0.00039726,7]
[314013590,1707923531585,-500.0,0.00039726,7]
[314013591,1707923531594,-500.0,0.00039726,7]
[314013592,1707923531603,-500.0,0.00039726,7]
[314013593,1707923531613,-778.72,0.00039726,7]
[314013594,1707923531622,-537.19,0.00039726,7]
[314013595,1707923531631,-522.92,0.00039726,7]
[314013596,1707923531641,-500.0,0.00039726,7]
[314013597,1707923531650,-839.23,0.00039726,7]
[314013598,1707923531659,-500.0,0.00039726,7]
[314013599,1707923531673,-540.0,0.00039726,7]
[314013600,1707923531682,-500.0,0.00039726,7]
[314013601,1707923531692,-500.0,0.00039726,7]
[314013602,1707923531702,-860.82,0.00039726,7]
[314013603,1707923531711,-710.26,0.00039726,7]
[314013604,1707923531721,-511.75605393,0.00039726,7]
[314013605,1707923531730,-500.0,0.00039726,7]
[314013606,1707923531740,-500.0,0.00039726,7]
[314013607,1707923531749,-594.3,0.00039726,7]
[314013608,1707923531758,-1376.8,0.00039726,7]
[314013609,1707923531767,-563.0,0.00039726,7]
[314013610,1707923531776,-689.41,0.00039726,7]
[314013611,1707923531786,-1735.17,0.00039726,7]
[314013612,1707923531795,-1292.66,0.00039726,7]
[314013613,1707923531805,-2576.99,0.00039726,7]
[314013614,1707923531814,-500.0,0.00039726,7]
[314013615,1707923531824,-500.0,0.00039726,7]
[314013616,1707923531834,-1880.82,0.00039726,7]
[314013617,1707923531843,-551.14,0.00039726,7]
[314013618,1707923531852,-1420.44,0.00039726,7]
[314013619,1707923531861,-713.29,0.00039726,7]
[314013620,1707923531871,-1306.77,0.00039726,7]
[314013621,1707923531881,-865.48,0.00039726,7]
[314013622,1707923531891,-500.0,0.00039726,7]
[314013623,1707923531900,-798.43,0.00039726,7]
[314013624,1707923531909,-266.25503242,0.00039726,7]
[314013625,1707923531924,-500.0,0.00039726,7]
[314013626,1707923531934,-792.44,0.00039726,7]
[314013627,1707923531943,-1762.73,0.00039726,7]
[314013628,1707923531952,-500.0,0.00039726,7]
[314013629,1707923531962,-566.85,0.00039726,7]
[314013630,1707923531972,-500.0,0.00039726,7]
[314013631,1707923531982,-616.16,0.00039726,7]
[314013632,1707923531992,-500.0,0.00039726,7]
[314013633,1707923532002,-500.0,0.00039726,7]
[314013634,1707923532015,-500.0,0.00039726,7]